bitfinex-derivatives/quotes_BTCF0:USTF0_20241217
["timestamp","ask_amount","ask_price","bid_price","bid_amount"]
[1734434214689,0.438522,107250.0,107240.0,0.11419148]
[1734434215590,0.438522,107250.0,107240.0,0.16903277]
[1734434215899,0.40742,107260.0,107250.0,0.046622]
[1734434216193,0.40742,107260.0,107250.0,0.10146329]
[1734434216693,0.04662,107260.0,107250.0,0.10146329]
[1734434217687,0.40742,107260.0,107250.0,0.10146329]
[1734434220390,0.40742,107260.0,107250.0,0.13366329]
[1734434220987,0.472915,107270.0,107260.0,0.046618]
[1734434220988,0.440115,107270.0,107260.0,0.046618]
[1734434221293,0.440115,107270.0,107260.0,0.10145929]
[1734434222095,0.440115,107270.0,107260.0,0.11019603]
[1734434222295,0.440115,107270.0,107260.0,0.10145929]
[1734434222492,0.440115,107270.0,107260.0,0.11019603]
[1734434223296,0.440115,107270.0,107260.0,0.10145929]
[1734434223683,0.440115,107270.0,107260.0,0.11019603]
[1734434225691,0.440115,107270.0,107260.0,0.10145929]
[1734434225995,0.440115,107270.0,107260.0,0.046618]
[1734434226999,0.440115,107270.0,107260.0,0.05859273]
[1734434227490,0.49495629,107270.0,107260.0,0.05859273]
[1734434228701,0.440115,107270.0,107260.0,0.11343402]
[1734434229401,0.3608,107270.0,107260.0,0.16827531]
[1734434229597,0.3608,107270.0,107260.0,0.20991156]
[1734434229992,0.3608,107270.0,107260.0,0.20117531]
[1734434231290,0.3608,107270.0,107260.0,0.20126637]
[1734434232394,0.407411,107280.0,107270.0,0.046613]
[1734434232593,0.407411,107280.0,107270.0,0.10145429]
[1734434233697,0.407411,107280.0,107270.0,0.11019054]
[1734434233904,0.407411,107280.0,107270.0,0.10145429]
[1734434235612,0.407411,107280.0,107270.0,0.05484129]
[1734434235906,0.407411,107280.0,107270.0,0.10145429]
[1734434238295,0.3608,107280.0,107270.0,0.10145429]
[1734434238491,0.3608,107280.0,107270.0,0.13185429]
[1734434238690,0.407409,107280.0,107270.0,0.13185429]
[1734434239097,0.46225029,107280.0,107270.0,0.046613]
[1734434239298,0.407409,107280.0,107270.0,0.10145429]
[1734434243305,0.407409,107280.0,107270.0,0.046613]
[1734434243509,0.407409,107280.0,107270.0,0.10145429]
[1734434243808,0.46225029,107280.0,107270.0,0.046613]
[1734434244002,0.49345029,107280.0,107270.0,0.046613]
[1734434245318,0.49345029,107280.0,107270.0,0.10145429]
[1734434245319,0.438609,107280.0,107270.0,0.10145429]
[1734434246198,0.49345029,107280.0,107270.0,0.046613]
[1734434246400,0.49345029,107280.0,107270.0,0.06509528]
[1734434247410,0.438609,107280.0,107270.0,0.06509528]
[1734434253619,0.438609,107280.0,107270.0,0.01848228]
[1734434254418,0.54829158,107280.0,107260.0,0.01235004]
[1734434254604,0.54949558,107270.0,107260.0,9.106e-05]
[1734434254807,0.58279558,107270.0,107260.0,9.106e-05]
[1734434255006,0.52795429,107270.0,107260.0,9.106e-05]
[1734434256116,0.58279558,107270.0,107260.0,9.106e-05]
[1734434256622,0.046626,107240.0,107230.0,0.00873625]
[1734434256919,0.046631,107230.0,107220.0,0.11652882]
[1734434257118,0.438431,107230.0,107220.0,0.11652882]
[1734434257617,0.438431,107230.0,107220.0,0.11660722]
[1734434258515,0.438431,107230.0,107220.0,0.13560533]
[1734434259021,0.49327229,107230.0,107220.0,0.13560533]
[1734434259217,0.49327229,107230.0,107220.0,0.08076404]
[1734434259524,0.49327229,107230.0,107220.0,0.03412904]
[1734434260209,0.49327229,107230.0,107220.0,0.01907651]
[1734434262014,0.52192195,107230.0,107220.0,0.01907651]
[1734434262820,0.52192195,107230.0,107220.0,7.84e-05]
[1734434266722,0.438431,107230.0,107220.0,7.84e-05]
[1734434266928,0.438431,107230.0,107220.0,0.08356935]
[1734434267126,0.438431,107230.0,107220.0,0.13020435]
[1734434267424,0.438431,107230.0,107220.0,0.0467134]
[1734434270323,0.52192195,107230.0,107220.0,7.84e-05]
[1734434280329,0.438431,107230.0,107220.0,0.0467134]
[1734434281040,0.438431,107230.0,107220.0,7.84e-05]
[1734434281923,0.49321262,107230.0,107220.0,7.84e-05]
[1734434283132,0.438431,107230.0,107220.0,0.0467134]
[1734434283520,0.49321262,107230.0,107220.0,7.84e-05]
[1734434286222,0.49321262,107230.0,107220.0,0.0467134]
[1734434286628,0.438431,107230.0,107220.0,0.0467134]
[1734434287239,0.49321262,107230.0,107220.0,0.0467134]
[1734434290134,0.49321262,107230.0,107220.0,7.84e-05]
[1734434292045,0.49321262,107230.0,107220.0,0.0467134]
[1734434292745,0.49321262,107230.0,107220.0,7.84e-05]
[1734434293337,0.438431,107230.0,107220.0,0.0467134]
[1734434293543,0.438431,107230.0,107220.0,0.10149502]
[1734434295843,0.438431,107230.0,107220.0,0.13249502]
[1734434296757,0.52540862,107240.0,107220.0,0.18727664]
[1734434296758,0.3608,107240.0,107220.0,0.18727664]
[1734434296939,0.046628,107240.0,107230.0,0.10141262]
[1734434297346,0.46220962,107240.0,107220.0,0.15046002]
[1734434297555,0.046631,107230.0,107220.0,0.19709202]
[1734434298447,0.46221262,107230.0,107220.0,0.0627784]
[1734434298668,0.46221262,107230.0,107220.0,0.00881465]
[1734434298669,0.44738162,107230.0,107220.0,0.00881465]
[1734434298838,0.49401262,107230.0,107220.0,7.84e-05]
[1734434300048,0.52271965,107230.0,107220.0,7.84e-05]
[1734434300751,0.439231,107230.0,107220.0,7.84e-05]
[1734434302248,0.52271965,107230.0,107220.0,7.84e-05]
[1734434314362,0.046639,107210.0,107180.0,1.04272491]
[1734434314561,0.407448,107190.0,107180.0,1.04272491]
[1734434314854,0.407448,107190.0,107180.0,0.69848491]
[1734434315260,0.046648,107190.0,107180.0,0.69858089]
[1734434315558,0.046648,107190.0,107180.0,0.78206954]
[1734434316049,0.046648,107190.0,107180.0,0.14274498]
[1734434316257,0.407448,107190.0,107180.0,0.14274498]
[1734434317651,0.407448,107190.0,107180.0,0.17876713]
[1734434318658,0.407448,107190.0,107180.0,0.73460304]
[1734434320363,0.407448,107190.0,107180.0,0.23357862]
[1734434321356,0.407448,107190.0,107180.0,0.28839011]
[1734434322065,0.407448,107190.0,107180.0,0.23357862]
[1734434324165,0.407448,107190.0,107180.0,0.17876713]
[1734434324355,0.407448,107190.0,107180.0,0.23357862]
[1734434325753,0.407448,107190.0,107180.0,0.05712048]
[1734434325959,0.407448,107190.0,107180.0,0.10377148]
[1734434326766,0.407448,107190.0,107180.0,0.10386357]
[1734434327558,0.407448,107190.0,107180.0,0.65969948]
[1734434327754,0.46225949,107190.0,107180.0,0.6234398]
[1734434327961,0.46225949,107190.0,107180.0,0.06760389]
[1734434329865,0.49355949,107190.0,107180.0,0.06760389]
[1734434330265,0.438748,107190.0,107180.0,0.12241538]
[1734434332372,0.438748,107190.0,107180.0,0.67825129]
[1734434332858,0.438748,107190.0,107180.0,0.12241538]
[1734434333269,0.077948,107190.0,107180.0,0.12241538]
[1734434333471,0.438748,107190.0,107180.0,0.12241538]
[1734434334075,0.49355949,107190.0,107180.0,0.06760389]
[1734434337072,0.49355949,107190.0,107180.0,0.02095289]
[1734434337866,0.49355949,107190.0,107180.0,0.06760489]
[1734434338064,0.49355949,107190.0,107180.0,0.12241638]
[1734434338065,0.438748,107190.0,107180.0,0.12241638]
[1734434338877,0.49355949,107190.0,107180.0,0.06760489]
[1734434339179,0.49355949,107190.0,107180.0,0.52153449]
[1734434339476,0.49355949,107190.0,107180.0,0.02095289]
[1734434340474,0.49355949,107190.0,107180.0,0.50298268]
[1734434342181,0.49355949,107190.0,107180.0,0.05721257]
[1734434342371,0.49355949,107190.0,107180.0,0.55779417]
[1734434342577,0.438748,107190.0,107180.0,0.55779417]
[1734434342769,0.438748,107190.0,107180.0,0.50298268]
[1734434343370,0.49355949,107190.0,107180.0,0.50298268]
[1734434343974,0.49355949,107190.0,107180.0,0.00240108]
[1734434344469,0.49355949,107190.0,107180.0,0.50298268]
[1734434344969,0.49355949,107190.0,107180.0,1.05881859]
[1734434345768,0.49355949,107190.0,107180.0,0.50298268]
[1734434345968,0.49355949,107190.0,107180.0,1.05881859]
[1734434346173,0.49355949,107190.0,107180.0,0.50298268]
[1734434346380,0.49355949,107190.0,107180.0,0.00240108]
[1734434346681,0.49355949,107190.0,107180.0,0.55823699]
[1734434346871,0.54837098,107190.0,107180.0,9.209e-05]
[1734434347078,0.49355949,107190.0,107180.0,1.05673435]
[1734434347475,0.49355949,107190.0,107180.0,0.50089844]
[1734434347674,0.49355949,107190.0,107180.0,1.05673435]
[1734434347884,0.49355949,107190.0,107180.0,0.50089844]
[1734434348072,0.49355949,107190.0,107180.0,9.209e-05]
[1734434348585,0.49355949,107190.0,107180.0,1.05673435]
[1734434348792,0.49355949,107190.0,107180.0,0.50089844]
[1734434349277,0.49355949,107190.0,107180.0,1.05673435]
[1734434349480,0.49355949,107190.0,107180.0,0.50089844]
[1734434350085,0.49355949,107190.0,107180.0,9.209e-05]
[1734434351385,0.49355949,107190.0,107180.0,0.50089844]
[1734434353986,0.49355949,107190.0,107180.0,9.209e-05]
[1734434356190,0.438748,107190.0,107180.0,9.209e-05]
[1734434356591,0.49355949,107190.0,107180.0,9.209e-05]
[1734434357389,0.438748,107190.0,107180.0,9.209e-05]
[1734434358089,0.438748,107190.0,107180.0,0.50089844]
[1734434359396,0.49355949,107190.0,107180.0,0.50089844]
[1734434359699,0.438748,107190.0,107180.0,0.50089844]
[1734434360486,0.49355949,107190.0,107180.0,0.50089844]
[1734434361791,0.49355949,107190.0,107180.0,9.209e-05]
[1734434362599,0.438748,107190.0,107180.0,9.209e-05]
[1734434364985,0.077948,107190.0,107180.0,9.209e-05]
[1734434365301,0.799548,107190.0,107180.0,9.209e-05]
[1734434365688,0.799548,107190.0,107180.0,0.50089844]
[1734434368796,0.799548,107190.0,107180.0,0.65717342]
[1734434369104,0.799548,107190.0,107180.0,0.60236193]
[1734434370699,0.799548,107190.0,107180.0,0.65717342]
[1734434371189,0.799548,107190.0,107180.0,0.60236193]
[1734434371504,0.799548,107190.0,107180.0,0.50089844]
[1734434373004,0.85435949,107190.0,107180.0,0.50089844]
[1734434377697,0.85435949,107190.0,107180.0,0.50964201]
[1734434378310,0.85435949,107190.0,107180.0,0.50089844]
[1734434380709,0.85435949,107190.0,107180.0,9.209e-05]
[1734434381602,0.88141525,107190.0,107180.0,9.209e-05]
[1734434383102,0.88141525,107190.0,107180.0,0.50089844]
[1734434383406,0.88141525,107190.0,107180.0,9.209e-05]
[1734434384405,0.93622674,107190.0,107170.0,0.02165151]
[1734434384607,0.46226349,107180.0,107160.0,0.07351971]
[1734434384805,0.407457,107170.0,107160.0,0.07351971]
[1734434385509,0.407457,107170.0,107160.0,0.56469685]
[1734434386002,0.438357,107170.0,107160.0,1.11242748]
[1734434386204,0.438357,107170.0,107160.0,0.55659157]
[1734434388313,0.3963831,107170.0,107160.0,0.06367243]
[1734434388515,0.3963831,107170.0,107160.0,0.61950834]
[1734434388730,0.3963831,107170.0,107160.0,0.55638599]
[1734434390317,0.3963831,107170.0,107160.0,0.05492886]
[1734434390906,0.3963831,107170.0,107160.0,0.00011737]
[1734434391107,0.45119459,107170.0,107160.0,0.00011737]
[1734434394619,0.45119459,107170.0,107160.0,0.05492886]
[1734434394816,0.45119459,107170.0,107160.0,0.00011737]
[1734434396013,0.45119459,107170.0,107160.0,0.05492886]
[1734434396321,0.45119459,107170.0,107160.0,0.55638599]
[1734434396617,0.45119459,107170.0,107160.0,0.5015745]
[1734434397620,0.45119459,107170.0,107160.0,0.00011737]
[1734434398921,0.046661,107160.0,107150.0,0.46291985]
[1734434399121,0.46227249,107160.0,107150.0,0.46291985]
[1734434399323,0.046665,107150.0,107140.0,0.6573144]
[1734434400022,0.046665,107150.0,107140.0,0.65740459]
[1734434400223,0.046665,107150.0,107140.0,0.68492524]
[1734434400423,0.10147649,107150.0,107140.0,0.63011375]
[1734434400809,0.046665,107150.0,107140.0,0.8872171]
[1734434401009,0.407465,107150.0,107140.0,0.58344675]
[1734434401219,0.46227649,107150.0,107140.0,0.58344675]
[1734434401919,0.46227649,107150.0,107140.0,0.63011675]
[1734434402114,0.407465,107150.0,107140.0,0.68492824]
[1734434403017,0.407465,107150.0,107140.0,0.63011675]
[1734434403221,0.407465,107150.0,107140.0,0.07428084]
[1734434403911,0.407465,107150.0,107140.0,0.02761084]
[1734434404115,0.407465,107150.0,107140.0,1.20367807]
[1734434404318,0.46227649,107150.0,107140.0,1.20367807]
[1734434404925,0.407465,107150.0,107140.0,1.25848956]
[1734434405223,0.46227649,107150.0,107140.0,0.59219032]
[1734434405423,0.46227649,107150.0,107140.0,1.20367807]
[1734434405624,0.49507649,107150.0,107140.0,0.59219032]
[1734434406326,0.49507649,107150.0,107140.0,0.02761084]
[1734434407027,0.49507649,107150.0,107140.0,0.59219032]
[1734434407225,0.49507649,107150.0,107140.0,0.02761084]
[1734434407523,0.54988798,107150.0,107140.0,0.44548246]
[1734434407721,0.54988798,107150.0,107140.0,9.019e-05]
[1734434407926,0.54988798,107150.0,107140.0,0.44540563]
[1734434409127,0.54988798,107150.0,107140.0,9.019e-05]
[1734434410825,0.57365258,107150.0,107140.0,9.019e-05]
[1734434412329,0.93445258,107150.0,107140.0,9.019e-05]
[1734434415933,0.87964109,107150.0,107140.0,9.019e-05]
[1734434423148,0.87964109,107150.0,107140.0,0.05490168]
[1734434423149,0.801065,107150.0,107140.0,0.05490168]
[1734434423552,0.768265,107150.0,107140.0,0.10971317]
[1734434423752,0.768265,107150.0,107140.0,0.60242832]
[1734434424147,0.768265,107150.0,107140.0,0.10157168]
[1734434424654,0.768265,107150.0,107140.0,0.12509565]
[1734434425955,0.407465,107150.0,107140.0,0.12509565]
[1734434426551,0.407465,107150.0,107140.0,0.62595229]
[1734434428144,0.46227649,107150.0,107140.0,0.5244708]
[1734434428444,0.407465,107150.0,107140.0,1.08030671]
[1734434428654,0.407465,107150.0,107140.0,0.5244708]
[1734434429358,0.407465,107150.0,107140.0,0.57928229]
[1734434429558,0.407465,107150.0,107140.0,0.5244708]
[1734434429752,0.46227649,107150.0,107140.0,0.02361416]
[1734434429953,0.49377649,107150.0,107140.0,0.02361416]
[1734434431352,0.49377649,107150.0,107140.0,0.5244708]
[1734434431946,0.49377649,107150.0,107140.0,0.02361416]
[1734434432558,0.49377649,107150.0,107140.0,9.019e-05]
[1734434438956,0.54858798,107150.0,107140.0,9.019e-05]
[1734434442649,0.46772609,107150.0,107140.0,9.019e-05]
[1734434442853,0.52253758,107150.0,107140.0,9.019e-05]
[1734434445771,0.57734907,107150.0,107140.0,9.019e-05]
[1734434446065,0.52253758,107150.0,107140.0,9.019e-05]
[1734434446261,0.57734907,107150.0,107140.0,9.019e-05]
[1734434448055,0.57734907,107150.0,107120.0,0.30678822]
[1734434448259,0.82308549,107130.0,107120.0,0.30678822]
[1734434448471,0.82308549,107130.0,107110.0,0.66212076]
[1734434448768,0.3608,107120.0,107110.0,0.66212076]
[1734434448955,0.3608,107120.0,107110.0,0.16126412]
[1734434449159,0.3608,107120.0,107110.0,0.16136783]
[1734434449469,0.407478,107120.0,107110.0,0.16136783]
[1734434449967,0.51710098,107120.0,107110.0,0.02907634]
[1734434450371,0.58090098,107120.0,107110.0,0.02907634]
[1734434450673,0.52608949,107120.0,107110.0,0.02907634]
[1734434450968,0.58090098,107120.0,107110.0,0.02907634]
[1734434451165,0.52608949,107120.0,107110.0,0.02907634]
[1734434451466,0.58090098,107120.0,107110.0,0.02907634]
[1734434451654,0.52608949,107120.0,107110.0,0.02907634]
[1734434462675,0.471278,107120.0,107110.0,0.02907634]
[1734434463000,0.52608949,107120.0,107110.0,0.02907634]
[1734434464276,0.58090098,107120.0,107110.0,0.02907634]
[1734434465977,0.52608949,107120.0,107110.0,0.02907634]
[1734434469675,0.407478,107120.0,107110.0,0.13057083]
[1734434469990,0.07697089,107130.0,107120.0,0.046678]
[1734434470289,0.03498101,107130.0,107120.0,0.66606897]
[1734434470480,0.57115649,107140.0,107120.0,0.33361805]
[1734434470683,0.57115649,107140.0,107120.0,1.85014555]
[1734434470883,0.046674,107130.0,107120.0,1.1919798]
[1734434471083,0.10148549,107130.0,107120.0,0.63530306]
[1734434471388,0.046678,107120.0,107110.0,0.19326783]
[1734434471691,0.46228949,107120.0,107110.0,0.10615634]
[1734434471895,0.10148949,107120.0,107110.0,0.10615634]
[1734434472190,0.046678,107120.0,107110.0,0.16096783]
[1734434474294,0.046678,107120.0,107110.0,0.01628276]
[1734434474485,0.046678,107120.0,107110.0,0.06296276]
[1734434474680,0.046678,107120.0,107110.0,0.04668]
[1734434474881,0.49378949,107120.0,107110.0,0.04668]
[1734434475090,0.16418949,107120.0,107110.0,0.04668]
[1734434475396,0.16418949,107120.0,107110.0,0.04676405]
[1734434475886,0.470178,107120.0,107110.0,0.04676405]
[1734434476088,0.470178,107120.0,107110.0,0.10157554]
[1734434477400,0.52498949,107120.0,107110.0,0.04676405]
[1734434477991,0.470178,107120.0,107110.0,0.5486293]
[1734434478192,0.470178,107120.0,107110.0,0.58556751]
[1734434478792,0.52498949,107120.0,107110.0,0.58556751]
[1734434479103,0.470178,107120.0,107110.0,0.58556751]
[1734434480193,0.470178,107120.0,107110.0,0.65878544]
[1734434480588,0.109378,107120.0,107110.0,0.65878544]
[1734434481204,0.470178,107120.0,107110.0,0.65878544]
[1734434482503,0.470178,107120.0,107110.0,0.60397395]
[1734434483096,0.470178,107120.0,107110.0,1.16160201]
[1734434483596,0.470178,107120.0,107110.0,0.65878544]
[1734434484899,0.470178,107120.0,107110.0,0.60300246]
[1734434487397,0.470178,107120.0,107110.0,0.44608227]
[1734434487593,0.470178,107120.0,107110.0,0.49276227]
[1734434487802,0.470178,107120.0,107110.0,0.52921304]
[1734434488192,0.52498949,107120.0,107110.0,0.52921304]
[1734434488392,0.52498949,107120.0,107110.0,0.58509218]
[1734434489702,0.88578949,107120.0,107110.0,0.58509218]
[1734434490609,0.88578949,107120.0,107110.0,0.53841218]
[1734434491203,0.94060098,107120.0,107110.0,0.53841218]
[1734434491592,0.88578949,107120.0,107110.0,0.53841218]
[1734434491794,0.88578949,107120.0,107110.0,0.98480076]
[1734434492406,0.52498949,107120.0,107110.0,0.53841218]
[1734434492701,0.88578949,107120.0,107110.0,0.53841218]
[1734434493100,0.94060098,107120.0,107110.0,0.53841218]
[1734434493700,0.88578949,107120.0,107110.0,0.48300116]
[1734434494104,0.94060098,107120.0,107110.0,0.48300116]
[1734434495511,0.88810611,107120.0,107110.0,1.09454832]
[1734434495699,0.88810611,107120.0,107110.0,0.48306057]
[1734434495894,0.88810611,107120.0,107110.0,0.50242491]
[1734434496207,0.9429176,107120.0,107110.0,1.06879654]
[1734434496607,0.88810611,107120.0,107110.0,1.06879654]
[1734434496802,0.88810611,107120.0,107110.0,0.51116848]
[1734434497193,0.9429176,107120.0,107110.0,0.51116848]
[1734434497600,0.88810611,107120.0,107110.0,0.51116848]
[1734434497913,0.88810611,107120.0,107110.0,0.50242491]
[1734434498106,0.88810611,107120.0,107110.0,0.94904408]
[1734434498295,0.88810611,107120.0,107110.0,0.44671533]
[1734434498613,0.88810611,107120.0,107110.0,9.616e-05]
[1734434498810,0.91950611,107120.0,107110.0,9.616e-05]
[1734434502006,0.91950611,107120.0,107110.0,0.44671533]
[1734434502718,0.9743176,107120.0,107110.0,0.44671533]
[1734434503213,0.91950611,107120.0,107110.0,0.44671533]
[1734434503905,0.91950611,107120.0,107110.0,9.616e-05]
[1734434505514,0.9743176,107120.0,107110.0,9.616e-05]
[1734434506717,0.91950611,107120.0,107110.0,9.616e-05]
[1734434507109,0.9743176,107120.0,107110.0,9.616e-05]
[1734434508205,0.91950611,107120.0,107110.0,9.616e-05]
[1734434510816,0.9743176,107120.0,107110.0,9.616e-05]
[1734434511811,0.91950611,107120.0,107110.0,9.616e-05]
[1734434513918,0.80988313,107120.0,107110.0,9.616e-05]
[1734434514223,0.91950611,107120.0,107110.0,9.616e-05]
[1734434520411,0.9743176,107120.0,107110.0,9.616e-05]
[1734434521616,0.91950611,107120.0,107110.0,9.616e-05]
[1734434522221,0.91950611,107120.0,107110.0,0.44671533]
[1734434522620,0.91950611,107120.0,107110.0,9.616e-05]
[1734434523213,0.91950611,107120.0,107110.0,0.44671533]
[1734434523613,0.91950611,107120.0,107110.0,9.616e-05]
[1734434523928,0.91950611,107120.0,107110.0,0.44671533]
[1734434524722,0.9743176,107120.0,107110.0,0.44671533]
[1734434524917,0.9743176,107120.0,107110.0,0.07928222]
[1734434525111,0.21914653,107110.0,107100.0,0.1]
[1734434525412,0.72016951,107110.0,107100.0,0.1]
[1734434525827,0.72016951,107110.0,107100.0,0.10007543]
[1734434530526,0.774981,107110.0,107100.0,0.10007543]
[1734434530717,0.72016951,107110.0,107100.0,0.10007543]
[1734434532433,0.76792964,107110.0,107100.0,0.10007543]
[1734434533828,0.82274113,107110.0,107100.0,4.3e-07]
[1734434534622,0.046692,107090.0,107070.0,0.03616879]
[1734434534929,0.41561149,107080.0,107070.0,0.0835182]
[1734434535126,0.41561149,107080.0,107070.0,0.03616879]
[1734434535729,0.41561149,107080.0,107070.0,0.03626255]
[1734434536434,0.46230749,107080.0,107070.0,0.03626255]
[1734434538832,0.046696,107080.0,107070.0,0.13777404]
[1734434539532,0.046696,107080.0,107070.0,0.43777404]
[1734434540636,0.046696,107080.0,107070.0,0.13777404]
[1734434549639,0.46230549,107090.0,107080.0,0.046696]
[1734434549829,0.46230549,107090.0,107080.0,0.10150749]
[1734434550332,0.46230549,107090.0,107080.0,0.13240749]
[1734434556348,0.46230549,107090.0,107080.0,0.077596]
[1734434556535,0.46230549,107090.0,107080.0,0.1242601]
[1734434558541,0.46230549,107090.0,107080.0,0.0933601]
[1734434558745,0.49410549,107090.0,107080.0,0.0933601]
[1734434559248,0.13330549,107090.0,107080.0,0.0933601]
[1734434559437,0.49410549,107090.0,107080.0,0.0933601]
[1734434562645,0.49410549,107090.0,107080.0,0.14817159]
[1734434564147,0.52620549,107090.0,107080.0,0.14817159]
[1734434564335,0.52620549,107090.0,107080.0,0.0933601]
[1734434564645,0.52620549,107090.0,107070.0,0.05133488]
[1734434564939,0.52620549,107090.0,107080.0,0.046696]
[1734434565743,0.52620549,107090.0,107080.0,0.0467949]
[1734434568647,0.52620549,107090.0,107080.0,0.10160639]
[1734434569642,0.471394,107090.0,107080.0,0.10160639]
[1734434570048,0.52620549,107090.0,107080.0,0.10160639]
[1734434570242,0.52620549,107090.0,107080.0,0.52596145]
[1734434570243,0.0318,107090.0,107080.0,0.52596145]
[1734434570445,0.440788,107100.0,107090.0,0.046692]
[1734434570647,0.440788,107100.0,107090.0,0.10150349]
[1734434570949,0.3941,107100.0,107090.0,0.11024706]
[1734434571149,0.24954753,107110.0,107090.0,0.10150349]
[1734434571460,0.20286353,107110.0,107100.0,0.15630998]
[1734434572056,0.20286353,107110.0,107100.0,0.10149849]
[1734434572655,0.17246353,107110.0,107100.0,0.16505355]
[1734434572860,0.17246353,107110.0,107100.0,0.18920998]
[1734434574656,0.17246353,107110.0,107100.0,0.079587]
[1734434574847,0.17246353,107110.0,107100.0,0.18920998]
[1734434575359,0.17246353,107110.0,107100.0,0.13439849]
[1734434575760,0.17246353,107110.0,107100.0,0.18920998]
[1734434575959,0.17246353,107110.0,107100.0,0.22788888]
[1734434578961,0.17246353,107110.0,107100.0,0.17307739]
[1734434579458,0.53326353,107110.0,107100.0,0.17307739]
[1734434579656,0.17246353,107110.0,107100.0,0.17307739]
[1734434579848,0.17246353,107110.0,107100.0,0.53387739]
[1734434580659,0.17246353,107110.0,107100.0,0.58868888]
[1734434581361,0.17246353,107110.0,107100.0,0.53387739]
[1734434582356,0.17246353,107110.0,107100.0,0.58868888]
[1734434582670,0.17246353,107110.0,107100.0,0.62058888]
[1734434584662,0.17246353,107110.0,107100.0,0.63889079]
[1734434584869,0.17246353,107110.0,107100.0,0.5840793]
[1734434588953,0.17246353,107110.0,107100.0,0.63889079]
[1734434590665,0.17246353,107110.0,107100.0,0.60699079]
[1734434594873,0.17246353,107110.0,107100.0,0.44511732]
[1734434595069,0.17246353,107110.0,107100.0,0.49180432]
[1734434596270,0.17246353,107110.0,107100.0,0.53843099]
[1734434597171,0.0327,107120.0,107100.0,0.68661448]
[1734434597376,0.0646,107130.0,107110.0,0.61046998]
[1734434597571,0.0646,107130.0,107120.0,0.51710198]
[1734434597875,0.0316,107140.0,107120.0,0.51710198]
[1734434598073,0.0316,107140.0,107130.0,0.05481149]
[1734434598373,0.0316,107140.0,107130.0,0.51709698]
[1734434598970,0.0316,107140.0,107130.0,0.46228549]
[1734434599373,0.0316,107140.0,107130.0,0.51709698]
[1734434600174,0.0316,107140.0,107130.0,0.10148549]
[1734434600471,0.43907,107140.0,107130.0,0.10148549]
[1734434600673,0.3924,107140.0,107130.0,0.10148549]
[1734434600871,0.0316,107140.0,107130.0,0.10148549]
[1734434601469,0.3924,107140.0,107130.0,0.10148549]
[1734434604580,0.0316,107140.0,107130.0,0.50844716]
[1734434606573,0.0316,107140.0,107130.0,0.14764716]
[1734434612478,0.43907,107140.0,107130.0,0.09283567]
[1734434612678,0.43907,107140.0,107130.0,0.14764716]
[1734434612883,0.43907,107140.0,107130.0,0.16636092]
[1734434613083,0.3924,107140.0,107130.0,0.16636092]
[1734434613589,0.0316,107140.0,107130.0,0.16636092]
[1734434613790,0.3924,107140.0,107130.0,0.16636092]
[1734434613989,0.43907,107140.0,107130.0,0.16636092]
[1734434616789,0.0316,107140.0,107130.0,0.16636092]
[1734434619592,0.0316,107140.0,107130.0,0.52716092]
[1734434619791,0.0316,107140.0,107130.0,0.16636092]
[1734434620091,0.0316,107140.0,107130.0,0.52716092]
[1734434624187,0.0316,107140.0,107130.0,0.16636092]
[1734434624385,0.0316,107140.0,107130.0,0.52716092]
[1734434626092,0.0316,107140.0,107130.0,0.16636092]
[1734434626599,0.0316,107140.0,107130.0,0.52716092]
[1734434627396,0.0316,107140.0,107130.0,0.58197241]
[1734434627593,0.0316,107140.0,107130.0,0.52716092]
[1734434627797,0.0316,107140.0,107130.0,0.58197241]
[1734434628098,0.42377903,107150.0,107130.0,0.58197241]
[1734434628290,0.42377903,107150.0,107140.0,0.15629298]
[1734434630487,0.392,107160.0,107140.0,0.57197358]
[1734434630687,0.061,107170.0,107160.0,0.046661]
[1734434630894,0.3608,107180.0,107170.0,0.046657]
[1734434631097,0.3608,107180.0,107170.0,0.11021206]
[1734434631799,0.3608,107180.0,107170.0,0.10146849]
[1734434634491,0.487101,107190.0,107180.0,0.046652]
[1734434634692,0.801249,107190.0,107180.0,0.046652]
[1734434636004,0.833749,107190.0,107180.0,0.046652]
[1734434636201,0.867049,107190.0,107180.0,0.046652]
[1734434637199,0.92186049,107190.0,107180.0,0.046652]
[1734434643100,0.92186049,107190.0,107180.0,0.09258642]
[1734434644591,0.867049,107190.0,107180.0,0.14739791]
[1734434644891,0.4596,107190.0,107180.0,0.14739791]
[1734434647003,0.506248,107190.0,107180.0,0.14739791]
[1734434647197,0.56105949,107190.0,107180.0,0.09258642]
[1734434650296,0.046656,107180.0,107170.0,0.046654]
[1734434650495,0.46226749,107180.0,107170.0,0.046654]
[1734434650904,0.51707898,107180.0,107170.0,0.046654]
[1734434651998,0.407456,107180.0,107170.0,0.046654]
[1734434653605,0.49101243,107180.0,107170.0,0.046654]
[1734434654103,0.046657,107170.0,107160.0,0.09392235]
[1734434654305,0.58801343,107170.0,107160.0,0.046661]
[1734434654512,0.504457,107170.0,107160.0,0.046661]
[1734434658310,0.143657,107170.0,107160.0,0.046661]
[1734434658498,0.504457,107170.0,107160.0,0.046661]
[1734434659713,0.439757,107170.0,107160.0,0.046661]
[1734434662308,0.3608,107170.0,107160.0,0.13021743]
[1734434663005,0.407457,107170.0,107160.0,0.13021743]
[1734434663208,0.3608,107170.0,107160.0,0.16321743]
[1734434664705,0.3608,107170.0,107160.0,0.079661]
[1734434667413,0.407457,107170.0,107160.0,0.079661]
[1734434667620,0.407457,107170.0,107160.0,0.046661]
[1734434668914,0.439957,107170.0,107160.0,0.046661]
[1734434671911,0.471957,107170.0,107160.0,0.046661]
[1734434672714,0.55551343,107170.0,107160.0,0.00874357]
[1734434672923,0.046661,107160.0,107150.0,0.10298715]
[1734434673118,0.49101743,107160.0,107150.0,0.05540657]
[1734434673322,0.407461,107160.0,107150.0,0.046663]
[1734434674020,0.46231597,107160.0,107150.0,0.046663]
[1734434679731,0.51717094,107160.0,107150.0,0.046663]
[1734434680030,0.046665,107150.0,107140.0,0.10291587]
[1734434680223,0.49251997,107150.0,107140.0,0.10291587]
[1734434680424,0.437665,107150.0,107140.0,0.15777084]
[1734434680736,0.076865,107150.0,107140.0,0.15777084]
[1734434681126,0.437665,107150.0,107140.0,0.15777084]
[1734434681530,0.076865,107150.0,107140.0,0.15777084]
[1734434681938,0.49251997,107150.0,107140.0,0.0941723]
[1734434683437,0.437665,107150.0,107140.0,0.14902727]
[1734434684031,0.437665,107150.0,107140.0,0.05485497]
[1734434684225,0.437665,107150.0,107140.0,0.10152397]
[1734434685034,0.437665,107150.0,107140.0,0.10162011]
[1734434687730,0.437665,107150.0,107140.0,0.04676514]
[1734434691932,0.437665,107150.0,107140.0,0.10162011]
[1734434692540,0.437665,107150.0,107140.0,0.04676514]
[1734434696243,0.49251997,107150.0,107140.0,0.04676514]